bitfinex-derivatives/quotes_BTCF0:USTF0_20260107
["timestamp","ask_amount","ask_price","bid_price","bid_amount"]
[1767780330794,0.13137828,91813.0,91786.0,0.1203]
[1767780330795,0.09571122,91813.0,91792.0,0.13095566]
[1767780330989,0.13137828,91813.0,91792.0,0.09463404]
[1767780332202,0.03711571,91817.0,91795.0,0.13239062]
[1767780332502,0.03711571,91820.0,91796.0,0.13239062]
[1767780332894,0.13564881,91820.0,91796.0,0.13239062]
[1767780333095,0.03711571,91817.0,91796.0,0.09661361]
[1767780333397,0.00217797,91829.0,91810.0,0.03577701]
[1767780333599,0.00217797,91829.0,91810.0,0.04667701]
[1767780333806,0.00217797,91829.0,91813.0,0.010899]
[1767780334600,0.13782678,91829.0,91813.0,0.01167031]
[1767780334797,0.13564881,91828.0,91807.0,0.0109]
[1767780335005,0.13564881,91828.0,91810.0,0.0109]
[1767780335904,0.03711571,91826.0,91807.0,0.01199865]
[1767780336107,0.13564881,91826.0,91809.0,0.0109]
[1767780336806,0.13564881,91826.0,91812.0,0.010899]
[1767780337004,0.0985331,91826.0,91811.0,0.0109]
[1767780337308,0.00217797,91829.0,91811.0,0.0109]
[1767780337508,0.00217797,91829.0,91808.0,0.03577701]
[1767780337699,0.00217797,91829.0,91808.0,0.13239062]
[1767780338000,0.00217797,91829.0,91811.0,0.09661361]
[1767780338208,0.00217797,91829.0,91813.0,0.010899]
[1767780338595,0.03711571,91836.0,91817.0,0.010899]
[1767780338801,0.0985331,91838.0,91820.0,0.010898]
[1767780339001,0.13564881,91837.0,91820.0,0.010898]
[1767780339200,0.03711571,91836.0,91820.0,0.010898]
[1767780339410,0.03711571,91836.0,91788.0,0.22276785]
[1767780339411,0.03711571,91830.0,91808.0,0.09661361]
[1767780339604,0.13564881,91822.0,91803.0,0.01177143]
[1767780339813,0.13564881,91822.0,91804.0,0.0109]
[1767780340108,0.13564881,91822.0,91807.0,0.0109]
[1767780340297,0.13564881,91822.0,91805.0,0.0109]
[1767780340495,0.0985331,91822.0,91808.0,0.0109]
[1767780340899,0.13564881,91826.0,91803.0,0.01195027]
[1767780341097,0.13564881,91817.0,91802.0,0.010901]
[1767780341302,0.13564881,91814.0,91802.0,0.010901]
[1767780341503,0.0985331,91814.0,91802.0,0.010901]
[1767780341701,0.03711571,91819.0,91806.0,0.0109]
[1767780342103,0.0985331,91821.0,91798.0,0.13239062]
[1767780342701,0.0985331,91821.0,91810.0,0.0109]
[1767780342899,0.0985331,91821.0,91806.0,0.0109]
[1767780343408,0.0985331,91821.0,91807.0,0.0109]
[1767780343609,0.03711571,91824.0,91807.0,0.0109]
[1767780344218,0.13564881,91824.0,91807.0,0.0109]
[1767780346919,0.13564881,91824.0,91799.0,0.13239062]
[1767780347114,0.03711571,91823.0,91800.0,0.03577701]
[1767780347419,0.03711571,91823.0,91810.0,0.13476542]
[1767780347807,0.03711571,91821.0,91810.0,0.13476542]
[1767780348006,0.0985331,91822.0,91810.0,0.13476542]
[1767780349109,0.0985331,91822.0,91812.0,0.010899]
[1767780350120,0.03711571,91831.0,91810.0,0.12386542]
[1767780350510,0.03711571,91826.0,91810.0,0.12386542]
[1767780350822,0.03711571,91826.0,91813.0,0.010899]
[1767780351208,0.03711571,91825.0,91813.0,0.010899]
[1767780351614,0.03711571,91830.0,91813.0,0.010899]
[1767780351913,0.0985331,91832.0,91813.0,0.010899]
[1767780352120,0.0985331,91832.0,91815.0,0.010899]
[1767780352615,0.0985331,91832.0,91810.0,0.25625604]
[1767780352616,0.0985331,91832.0,91820.0,0.12386542]
[1767780353815,0.0985331,91832.0,91819.0,0.010899]
[1767780354121,0.0985331,91832.0,91820.0,0.12386542]
[1767780354328,0.03711571,91830.0,91816.0,0.010899]
[1767780354614,0.0985331,91831.0,91818.0,0.010899]
[1767780354819,0.0985331,91831.0,91810.0,0.25625604]
[1767780354820,0.0985331,91828.0,91810.0,0.0109]
[1767780355012,0.03711571,91824.0,91811.0,0.0109]
[1767780355414,0.03711571,91822.0,91808.0,0.0109]
[1767780355614,0.03711571,91822.0,91810.0,0.13476542]
[1767780355813,0.03711571,91820.0,91800.0,0.24416542]
[1767780356310,0.03711571,91820.0,91810.0,0.12386542]
[1767780356506,0.0985331,91821.0,91810.0,0.12386542]
[1767780356713,0.13564881,91819.0,91800.0,0.25506642]
[1767780356915,0.03711571,91814.0,91800.0,0.12386542]
[1767780357920,0.03711571,91814.0,91801.0,0.010901]
[1767780358921,0.03711571,91814.0,91800.0,0.12386542]
[1767780359719,0.03711571,91814.0,91800.0,0.13476642]
[1767780360116,0.03711571,91814.0,91793.0,0.03148371]
[1767780360318,0.03711571,91814.0,91797.0,0.010901]
[1767780360518,0.03711571,91814.0,91799.0,0.01307968]
[1767780360927,0.03466771,91813.0,91800.0,0.12386542]
[1767780361125,0.03466771,91811.0,91800.0,0.12386542]
[1767780362223,0.09659511,91812.0,91800.0,0.12386542]
[1767780362423,0.09659511,91812.0,91799.0,0.00217868]
[1767780363330,0.09659511,91812.0,91800.0,0.12386542]
[1767780364528,0.09659511,91812.0,91799.0,0.00217868]
[1767780365331,0.03154904,91811.0,91799.0,0.00217868]
[1767780365626,0.09142694,91806.0,91791.0,0.010902]
[1767780365831,0.03154904,91805.0,91791.0,0.010902]
[1767780366030,0.09142694,91806.0,91793.0,0.010902]
[1767780366230,0.03154904,91809.0,91793.0,0.010902]
[1767780366430,0.03154904,91808.0,91793.0,0.010902]
[1767780367238,0.03154904,91808.0,91795.0,0.010901]
[1767780368134,0.010898,91828.0,91802.0,0.010901]
[1767780368327,0.010898,91826.0,91799.0,0.010901]
[1767780369240,0.13476442,91820.0,91792.0,0.010902]
[1767780369641,0.12386542,91820.0,91795.0,0.010901]
[1767780370152,0.03154904,91814.0,91795.0,0.010901]
[1767780370341,0.03154904,91808.0,91792.0,0.010902]
[1767780370943,0.03154904,91806.0,91790.0,0.01185835]
[1767780371246,0.03154904,91806.0,91790.0,0.13476742]
[1767780371455,0.03154904,91806.0,91792.0,0.010902]
[1767780372545,0.03154904,91806.0,91794.0,0.010901]
[1767780372748,0.03154904,91815.0,91790.0,0.01177151]
[1767780372944,0.03154904,91815.0,91799.0,0.010901]
[1767780373140,0.03154904,91813.0,91796.0,0.010901]
[1767780373332,0.03154904,91812.0,91796.0,0.010901]
[1767780373844,0.03154904,91812.0,91791.0,0.09333781]
[1767780374046,0.03154904,91805.0,91790.0,0.13552628]
[1767780374250,0.03154904,91805.0,91790.0,0.12386542]
[1767780374433,0.03154904,91811.0,91790.0,0.12386542]
[1767780374635,0.03154904,91810.0,91791.0,0.010902]
[1767780375146,0.010901,91800.0,91770.0,0.10424181]
[1767780375345,0.03154904,91789.0,91780.0,4.22795768]
[1767780375646,0.03154904,91789.0,91780.0,4.14094731]
[1767780376749,0.12386542,91790.0,91780.0,4.08096601]
[1767780377050,0.4,91789.0,91780.0,4.08096601]
[1767780377245,0.010901,91799.0,91780.0,4.08096601]
[1767780377443,0.4,91798.0,91780.0,4.08096601]
[1767780377645,0.010901,91797.0,91780.0,4.08096601]
[1767780377942,0.010902,91794.0,91780.0,4.08096601]
[1767780379651,0.12386542,91790.0,91780.0,4.08096601]
[1767780379845,0.4,91798.0,91780.0,4.08096601]
[1767780381247,0.010902,91793.0,91780.0,4.08096601]
[1767780382249,0.410901,91798.0,91780.0,4.08096601]
[1767780382436,0.4,91798.0,91780.0,4.08096601]
[1767780382838,0.010901,91797.0,91780.0,4.08096601]
[1767780385943,0.010902,91794.0,91780.0,4.08096601]
[1767780386448,0.410901,91798.0,91780.0,4.08096601]
[1767780387043,0.4,91798.0,91780.0,4.08096601]
[1767780387754,0.410901,91798.0,91780.0,4.08096601]
[1767780388448,0.4,91798.0,91780.0,4.08096601]
[1767780391056,0.4,91798.0,91780.0,4.17430382]
[1767780391361,0.4,91798.0,91781.0,0.09333781]
[1767780391655,0.4,91798.0,91781.0,0.13537524]
[1767780391953,0.12386542,91830.0,91800.0,0.09045711]
[1767780392152,0.00217797,91829.0,91813.0,0.09045711]
[1767780392949,0.00217797,91829.0,91814.0,0.04203743]
[1767780393159,0.00217797,91829.0,91816.0,0.04203743]
[1767780393352,0.00217797,91829.0,91817.0,0.09045711]
[1767780403268,0.00217797,91829.0,91817.0,0.13249454]
[1767780403566,0.00217797,91829.0,91818.0,0.09045711]
[1767780404266,0.010896,91842.0,91827.0,0.09045711]
[1767780404470,0.12386542,91840.0,91827.0,0.09045711]
[1767780404654,0.010896,91839.0,91821.0,0.09045711]
[1767780405164,0.09268,91847.0,91829.0,0.21432253]
[1767780405364,0.09268,91847.0,91829.0,0.09045711]
[1767780405564,0.09268,91847.0,91831.0,0.09045711]
[1767780405758,0.00217726,91859.0,91839.0,0.13249454]
[1767780405958,0.00217726,91859.0,91841.0,0.09045711]
[1767780406160,0.010894,91855.0,91838.0,0.09391328]
[1767780406372,0.010894,91855.0,91835.0,0.09045711]
[1767780406668,0.04300612,91858.0,91837.0,0.09045711]
[1767780406863,0.01307126,91859.0,91841.0,0.09045711]
[1767780407171,0.05390112,91852.0,91834.0,0.09045711]
[1767780407370,0.04300612,91850.0,91835.0,0.09391328]
[1767780407567,0.010896,91846.0,91830.0,0.09391328]
[1767780407970,0.010896,91843.0,91830.0,0.09391328]
[1767780408264,0.010895,91847.0,91831.0,0.04203743]
[1767780408459,0.010895,91852.0,91834.0,0.09045711]
[1767780408663,0.010895,91852.0,91835.0,0.09045711]
[1767780408857,0.00217726,91859.0,91838.0,0.04203743]
[1767780409057,0.00217726,91859.0,91821.0,0.01183846]
[1767780409058,0.00217726,91859.0,91839.0,0.13249454]
[1767780409274,0.04300612,91858.0,91840.0,0.09045711]
[1767780409475,0.010894,91857.0,91840.0,0.09045711]
[1767780409972,0.00217726,91859.0,91840.0,0.09045711]
[1767780410164,0.00217726,91859.0,91843.0,0.04203743]
[1767780410360,0.00217726,91859.0,91844.0,0.09045711]
[1767780411565,0.04300612,91849.0,91830.0,0.09045711]
[1767780411770,0.010895,91848.0,91830.0,0.09045711]
[1767780411967,0.04300612,91849.0,91830.0,0.09045711]
[1767780412171,0.010896,91844.0,91830.0,0.09045711]
[1767780412574,0.05390112,91847.0,91830.0,0.09045711]
[1767780413870,0.010895,91847.0,91830.0,0.09045711]
[1767780414071,0.010895,91850.0,91830.0,0.13249454]
[1767780414466,0.05390112,91850.0,91830.0,0.09045711]
[1767780414974,0.010895,91848.0,91830.0,0.09045711]
[1767780415169,0.04300612,91850.0,91830.0,0.09045711]
[1767780415772,0.010895,91848.0,91830.0,0.09045711]
[1767780416480,0.010896,91845.0,91830.0,0.09045711]
[1767780417275,0.04300612,91850.0,91830.0,0.09045711]
[1767780417481,0.010895,91848.0,91830.0,0.09045711]
[1767780418190,0.05390212,91838.0,91816.0,0.09045711]
[1767780418372,0.05390212,91838.0,91819.0,0.09045711]
[1767780418572,0.05390212,91838.0,91820.0,0.09045711]
[1767780418573,0.010896,91838.0,91820.0,0.09045711]
[1767780418777,0.010896,91838.0,91820.0,0.13249454]
[1767780418973,0.010896,91838.0,91821.0,0.09045711]
[1767780419773,0.010896,91841.0,91821.0,0.09045711]
[1767780419973,0.010896,91841.0,91822.0,0.09170352]
[1767780420276,0.010895,91848.0,91827.0,0.09170352]
[1767780420482,0.0436647,91850.0,91828.0,0.09170352]
[1767780420684,0.010896,91846.0,91828.0,0.09170352]
[1767780421581,0.06032695,91854.0,91840.0,0.09632538]
[1767780421781,0.010895,91849.0,91840.0,0.09632538]
[1767780422082,0.010895,91848.0,91834.0,0.13594943]
[1767780422272,0.04239856,91855.0,91834.0,0.13594943]
[1767780422473,0.010896,91846.0,91834.0,0.13594943]
[1767780423481,0.010895,91850.0,91834.0,0.13594943]
[1767780423883,0.04239856,91855.0,91834.0,0.13594943]
[1767780424072,0.010895,91850.0,91834.0,0.09632538]
[1767780425381,0.04239856,91855.0,91834.0,0.09632538]
[1767780426087,0.13563811,91859.0,91836.0,0.09632538]
[1767780426387,0.04239856,91858.0,91836.0,0.09632538]
[1767780427283,0.010895,91852.0,91836.0,0.09632538]
[1767780427478,0.010895,91853.0,91836.0,0.09632538]
[1767780427876,0.010895,91853.0,91836.0,0.13594943]
[1767780428076,0.010894,91856.0,91839.0,0.13594943]
[1767780428283,0.010894,91856.0,91843.0,0.09632538]
[1767780428487,0.00217726,91859.0,91844.0,0.03962405]
[1767780428683,0.00217726,91859.0,91847.0,0.13594943]
[1767780428883,0.010895,91849.0,91827.0,0.03962405]
[1767780429384,0.010895,91853.0,91827.0,0.03962405]
[1767780429686,0.010891,91883.0,91841.0,0.03962405]
[1767780429687,0.010893,91870.0,91841.0,0.03962405]
[1767780429891,0.010893,91868.0,91841.0,0.03962405]
[1767780430086,0.04239856,91864.0,91841.0,0.03962405]
[1767780430285,0.010894,91855.0,91830.0,0.03962405]
[1767780430885,0.04239856,91861.0,91837.0,0.09632538]
[1767780431184,0.010895,91851.0,91837.0,0.09632538]
[1767780431389,0.010894,91854.0,91838.0,0.09632538]
[1767780431590,0.010894,91857.0,91841.0,0.09632538]
[1767780431782,0.010894,91857.0,91843.0,0.09632538]
[1767780432089,0.010893,91864.0,91844.0,0.13594943]
[1767780432279,0.010893,91864.0,91820.0,0.010898]
[1767780432280,0.010893,91870.0,91852.0,0.09632538]
[1767780432474,0.010893,91870.0,91853.0,0.09632538]
[1767780432875,0.010893,91870.0,91856.0,0.09632538]
[1767780433076,0.01089,91888.0,91827.0,0.010898]
[1767780433077,0.04239856,91887.0,91860.0,0.09632538]
[1767780433388,0.010892,91875.0,91861.0,0.09632538]
[1767780434794,0.09268,91876.0,91861.0,0.09632538]
[1767780436192,0.09268,91876.0,91862.0,0.09632538]
[1767780436495,0.09268,91876.0,91865.0,0.09632538]
[1767780436693,0.09268,91876.0,91865.0,0.13594943]
[1767780436890,0.09268,91876.0,91866.0,0.09632538]
[1767780437480,0.09268,91876.0,91861.0,0.09632538]
[1767780437686,0.103572,91876.0,91861.0,0.09632538]
[1767780438490,0.09268,91876.0,91861.0,0.09632538]
[1767780439597,0.09268,91876.0,91863.0,0.09632538]
[1767780439797,0.010892,91875.0,91863.0,0.09632538]
[1767780440292,0.09268,91876.0,91838.0,0.08727547]
[1767780440293,0.09268,91876.0,91858.0,0.03962405]
[1767780440497,0.010893,91868.0,91857.0,0.09632538]
[1767780440995,0.010892,91872.0,91857.0,0.09632538]
[1767780441303,0.010892,91875.0,91857.0,0.09632538]
[1767780441595,0.09268,91876.0,91858.0,0.09632538]
[1767780441797,0.09268,91876.0,91859.0,0.09632538]
[1767780441995,0.09268,91876.0,91860.0,0.09632538]
[1767780443801,0.09268,91876.0,91862.0,0.09632538]
[1767780444291,0.09268,91876.0,91865.0,0.09632538]
[1767780444494,0.09268,91876.0,91867.0,0.09632538]
[1767780444697,0.00217655,91889.0,91871.0,0.03962405]
[1767780444898,0.06317525,91889.0,91871.0,0.03962405]
[1767780445088,0.010891,91885.0,91870.0,0.09632538]
[1767780445289,0.01089,91888.0,91870.0,0.09632538]
[1767780445704,0.010891,91888.0,91870.0,0.09632538]
[1767780445897,0.05328956,91888.0,91867.0,0.03962405]
[1767780446301,0.05328956,91888.0,91868.0,0.09632538]
[1767780446797,0.00217655,91889.0,91870.0,0.09632538]
[1767780447000,0.00217655,91889.0,91872.0,0.13594943]
[1767780447198,0.00217655,91889.0,91875.0,0.09632538]
[1767780447506,0.00217655,91889.0,91876.0,0.13594943]
[1767780448004,0.00217655,91889.0,91877.0,0.09632538]
[1767780448200,0.00217655,91889.0,91878.0,0.09632538]
[1767780448407,0.00217655,91889.0,91879.0,0.09632538]
[1767780449099,0.01089,91888.0,91866.0,0.09632538]
[1767780449299,0.00217655,91889.0,91867.0,0.13594943]
[1767780449508,0.010891,91880.0,91861.0,0.09632538]
[1767780449805,0.010891,91880.0,91863.0,0.09632538]
[1767780450101,0.010891,91880.0,91864.0,0.13594943]
[1767780450596,0.010891,91880.0,91865.0,0.09632538]
[1767780450792,0.010891,91880.0,91860.0,0.13594943]
[1767780450987,0.010891,91884.0,91865.0,0.09632538]
[1767780451193,0.010891,91884.0,91870.0,0.09632538]
[1767780451701,0.010891,91888.0,91870.0,0.03962405]
[1767780451890,0.010891,91888.0,91871.0,0.0928863]
[1767780452095,0.00217655,91889.0,91874.0,0.03885379]
[1767780452294,0.00217655,91889.0,91876.0,0.03885379]
[1767780452494,0.010889,91898.0,91880.0,0.13174009]
[1767780452805,0.01089,91896.0,91881.0,0.13174009]
[1767780453006,0.01089,91896.0,91884.0,0.0928863]
[1767780453398,0.010889,91900.0,91884.0,0.0928863]
[1767780456001,0.010889,91900.0,91884.0,0.13174009]
[1767780457306,0.010889,91900.0,91888.0,0.03885379]
[1767780457495,0.09264,91903.0,91888.0,0.13174009]
[1767780457693,0.09264,91903.0,91875.0,0.010892]
[1767780457694,0.09264,91903.0,91892.0,0.0928863]
[1767780457894,0.010889,91902.0,91892.0,0.13174009]
[1767780458098,0.09264,91903.0,91896.0,0.0928863]
[1767780458303,0.09264,91903.0,91892.0,0.0928863]
[1767780458697,0.09264,91903.0,91892.0,0.13174009]
[1767780458894,0.103529,91903.0,91892.0,0.0928863]
[1767780459306,0.09264,91903.0,91892.0,0.0928863]
[1767780460801,0.010889,91902.0,91893.0,0.0928863]
[1767780461002,0.09264,91903.0,91887.0,0.13174009]
[1767780461296,0.103529,91903.0,91889.0,0.0928863]
[1767780461502,0.09264,91903.0,91895.0,0.0928863]
[1767780461905,0.05278635,91903.0,91895.0,0.13174009]
[1767780462106,0.05278635,91903.0,91898.0,0.0928863]
[1767780462609,0.05278635,91903.0,91894.0,0.0928863]
[1767780463217,0.05278635,91903.0,91895.0,0.0928863]
[1767780464208,0.03542865,91910.0,91897.0,0.0928863]
[1767780464407,0.0926,91927.0,91905.0,0.03885379]
[1767780464613,0.05114288,91909.0,91878.0,0.010892]
[1767780464802,0.010888,91909.0,91878.0,0.010892]
[1767780464999,0.010888,91909.0,91860.0,0.24854396]
[1767780465000,0.010889,91901.0,91869.0,0.010893]
[1767780465205,0.010889,91901.0,91872.0,0.010892]
[1767780465502,0.04025488,91900.0,91864.0,0.010893]
[1767780465707,0.04025488,91895.0,91864.0,0.010893]
[1767780465909,0.04025488,91895.0,91860.0,0.21750488]
[1767780466110,0.01089,91891.0,91861.0,0.010894]
[1767780466616,0.04025488,91894.0,91861.0,0.010894]
[1767780466617,0.01089,91892.0,91872.0,0.13174009]
[1767780466816,0.04025488,91884.0,91861.0,0.03885379]
[1767780467111,0.01089,91894.0,91860.0,0.0928863]
[1767780467112,0.04025488,91880.0,91860.0,0.0928863]
[1767780467309,0.010891,91883.0,91862.0,0.13174009]
[1767780467616,0.010891,91883.0,91864.0,0.13174009]
[1767780467808,0.04025488,91885.0,91864.0,0.12924009]
[1767780467999,0.010891,91885.0,91865.0,0.03885379]
[1767780468703,0.12374763,91880.0,91865.0,0.03885379]
[1767780469915,0.12374763,91880.0,91867.0,0.03885379]
[1767780470510,0.010891,91885.0,91866.0,0.0928863]
[1767780470726,0.12374763,91880.0,91866.0,0.0928863]
[1767780470910,0.04025488,91889.0,91866.0,0.0928863]
[1767780471111,0.12374763,91880.0,91866.0,0.0928863]
[1767780471508,0.010891,91883.0,91862.0,0.13174009]
[1767780472222,0.12374763,91880.0,91863.0,0.13174009]
[1767780474425,0.12374763,91880.0,91864.0,0.13174009]
[1767780475103,0.12374763,91880.0,91865.0,0.03885379]
[1767780475310,0.12374763,91880.0,91865.0,0.13174009]
[1767780476421,0.010891,91884.0,91865.0,0.13174009]
[1767780476613,0.010891,91884.0,91867.0,0.03885379]
[1767780476814,0.010891,91888.0,91867.0,0.13174009]
[1767780477620,0.010891,91888.0,91869.0,0.13174009]
[1767780477821,0.12374763,91890.0,91874.0,0.13174009]
[1767780478816,0.13463763,91890.0,91874.0,0.13174009]
[1767780479424,0.01089,91890.0,91874.0,0.13174009]
[1767780479721,0.01089,91890.0,91860.0,0.12374763]
[1767780479722,0.04025488,91880.0,91861.0,0.03885379]
[1767780480026,0.12374763,91880.0,91862.0,0.13174009]
[1767780480223,0.010891,91882.0,91863.0,0.13174009]
[1767780480727,0.12374763,91880.0,91869.0,0.13174009]
[1767780480929,0.12374763,91880.0,91869.0,0.0928863]
[1767780482417,0.010891,91883.0,91869.0,0.0928863]
[1767780482616,0.12374763,91880.0,91869.0,0.0928863]
[1767780483914,0.01089,91889.0,91872.0,0.132697]
[1767780484110,0.01089,91889.0,91873.0,0.132697]
[1767780484314,0.0926,91900.0,91882.0,0.132697]
[1767780484517,0.010889,91899.0,91878.0,0.132697]
[1767780484718,0.12374763,91890.0,91879.0,0.132697]
[1767780485018,0.12374763,91890.0,91881.0,0.132697]
[1767780485219,0.0926,91900.0,91887.0,0.132697]
[1767780485423,0.0926,91900.0,91890.0,0.13730281]
[1767780485625,0.12374763,91900.0,91891.0,0.13730281]
[1767780485818,0.12374763,91901.0,91894.0,0.0989075]
[1767780486018,0.12374763,91904.0,91894.0,0.0989075]
[1767780486214,0.12374763,91910.0,91894.0,0.0989075]
[1767780486526,0.13457055,91910.0,91894.0,0.0989075]
[1767780487314,0.010888,91910.0,91894.0,0.0989075]
[1767780488219,0.010888,91910.0,91889.0,0.13730281]
[1767780488419,0.010888,91910.0,91890.0,0.13730281]
[1767780489034,0.10560571,91897.0,91870.0,0.0989075]
[1767780489330,0.03767341,91884.0,91863.0,0.0989075]
[1767780490229,0.010891,91882.0,91863.0,0.0989075]
[1767780490424,0.010889,91903.0,91857.0,0.0989075]
[1767780490425,0.010892,91873.0,91857.0,0.0989075]
[1767780490731,0.010893,91871.0,91851.0,0.03839531]
[1767780491027,0.010892,91875.0,91851.0,0.13730281]
[1767780491223,0.04856541,91875.0,91852.0,0.0989075]
[1767780492228,0.04856541,91875.0,91852.0,0.13730281]
[1767780492426,0.04856541,91875.0,91853.0,0.0989075]
[1767780493537,0.04856541,91875.0,91853.0,0.13730281]
[1767780493729,0.010892,91871.0,91854.0,0.0989075]
[1767780493922,0.010892,91875.0,91854.0,0.0989075]
[1767780494230,0.010892,91875.0,91854.0,0.13730281]
[1767780494730,0.010892,91875.0,91841.0,0.010896]
[1767780494731,0.010892,91875.0,91855.0,0.13730281]
[1767780494925,0.06085362,91888.0,91860.0,0.0989075]
[1767780494926,0.010892,91879.0,91860.0,0.0989075]
[1767780495130,0.010892,91879.0,91862.0,0.13730281]
[1767780495327,0.010891,91884.0,91863.0,0.0989075]
[1767780495533,0.010891,91881.0,91863.0,0.0989075]
[1767780497528,0.010891,91880.0,91863.0,0.0989075]
[1767780497918,0.010892,91878.0,91863.0,0.0989075]
[1767780498328,0.010891,91882.0,91863.0,0.0989075]
[1767780498729,0.03767341,91883.0,91863.0,0.0989075]
[1767780499432,0.03767341,91879.0,91858.0,0.03839531]
[1767780499633,0.13239012,91881.0,91859.0,0.13730281]
[1767780500038,0.03767341,91880.0,91859.0,0.13730281]
[1767780500751,0.010893,91870.0,91851.0,0.0989075]
[1767780500920,0.010893,91867.0,91845.0,0.13730281]
[1767780501127,0.010893,91867.0,91847.0,0.13730281]
[1767780501328,0.03767341,91869.0,91847.0,0.13730281]
[1767780501523,0.010893,91868.0,91851.0,0.13730281]
[1767780501831,0.14297084,91880.0,91861.0,0.0989075]
[1767780502021,0.14297084,91880.0,91836.0,0.01169776]
[1767780502022,0.14297084,91880.0,91863.0,5e-07]
[1767780502227,0.010893,91865.0,91833.0,0.010897]
[1767780503234,0.010893,91865.0,91833.0,0.0225335]
[1767780503927,0.010894,91863.0,91830.0,0.010897]
[1767780504234,0.010894,91863.0,91839.0,0.0989075]
[1767780504433,0.010894,91863.0,91838.0,0.00491442]
[1767780504434,0.010894,91863.0,91846.0,0.0044497]
[1767780504629,0.010894,91863.0,91846.0,0.1033572]
[1767780504829,0.010894,91863.0,91847.0,0.0044497]
[1767780505431,0.010893,91865.0,91847.0,0.0044497]
[1767780506139,0.010893,91867.0,91847.0,0.0044497]
[1767780506330,0.13239012,91869.0,91848.0,0.00402584]
[1767780506530,0.13239012,91861.0,91840.0,0.00356408]
[1767780506741,0.06036432,91870.0,91835.0,0.0989075]
[1767780506742,0.13239012,91860.0,91836.0,0.00356408]
[1767780507042,0.010894,91858.0,91837.0,0.10247158]
[1767780507242,0.010894,91858.0,91838.0,0.10247158]
[1767780507428,0.010894,91858.0,91839.0,0.00356408]
[1767780507842,0.13239012,91860.0,91839.0,0.00356408]
[1767780508141,0.010894,91856.0,91839.0,0.00356408]
[1767780508732,0.28625496,91860.0,91839.0,0.00356408]
[1767780509545,0.14328412,91860.0,91839.0,0.00356408]
[1767780511337,0.03767341,91857.0,91835.0,0.00113451]
[1767780511640,0.12942313,91857.0,91835.0,0.00113451]
[1767780512032,0.09174972,91857.0,91837.0,0.00052832]
[1767780512732,0.14313638,91870.0,91833.0,0.00052832]
[1767780512733,0.0343107,91855.0,91833.0,0.00052832]
[1767780513035,0.12606042,91855.0,91833.0,0.00052832]
[1767780513240,0.12384218,91850.0,91833.0,0.09454222]
[1767780513836,0.12384218,91850.0,91833.0,0.0940139]
[1767780515542,0.09174972,91855.0,91833.0,0.0940139]
[1767780515757,0.12384218,91850.0,91833.0,0.0940139]
[1767780516546,0.09174972,91855.0,91833.0,0.0940139]
[1767780516844,0.12384218,91850.0,91833.0,0.0940139]
[1767780518342,0.09174972,91855.0,91833.0,0.0940139]
[1767780518544,0.12384218,91850.0,91833.0,0.0940139]
[1767780519748,0.09174972,91855.0,91833.0,0.0940139]
[1767780520048,0.2499026,91870.0,91845.0,0.0940139]
[1767780520233,0.12384218,91860.0,91845.0,0.0940139]
[1767780520440,0.12606042,91870.0,91845.0,0.0940139]
[1767780520641,0.0343107,91868.0,91845.0,0.0940139]
[1767780521038,0.0343107,91867.0,91845.0,0.0940139]
[1767780521245,0.12606042,91867.0,91845.0,0.0940139]
[1767780521546,0.12606042,91869.0,91845.0,0.0940139]
[1767780521743,0.12384218,91860.0,91845.0,0.0940139]
[1767780521943,0.12606042,91867.0,91845.0,0.0940139]
[1767780522148,0.0343107,91866.0,91845.0,0.0940139]
[1767780524343,0.12606042,91866.0,91845.0,0.0940139]
[1767780524652,0.12384218,91860.0,91839.0,0.0940139]
[1767780524847,0.12606042,91862.0,91839.0,0.0940139]
[1767780525049,0.12384218,91860.0,91839.0,0.0940139]
[1767780526054,0.15815288,91860.0,91839.0,0.0940139]
[1767780526750,0.0343107,91856.0,91832.0,0.0940139]
[1767780526946,0.12384218,91850.0,91832.0,0.0940139]
[1767780527539,0.09174972,91855.0,91832.0,0.0940139]
[1767780527839,0.0343107,91853.0,91832.0,0.1049109]
[1767780528148,0.12384218,91850.0,91832.0,0.1049109]
[1767780528852,0.12384218,91850.0,91832.0,0.0940139]
[1767780529353,0.15815288,91850.0,91832.0,0.0940139]
[1767780529540,0.0343107,91850.0,91832.0,0.0940139]
[1767780529748,0.10912864,91850.0,91832.0,0.0940139]
[1767780530159,0.10912864,91850.0,91829.0,0.00217797]
[1767780530160,0.07481794,91842.0,91829.0,0.00217797]
[1767780530343,0.07481794,91840.0,91829.0,0.00217797]
[1767780530649,0.12606042,91845.0,91829.0,0.00217797]
[1767780530842,0.12606042,91844.0,91829.0,0.00217797]
[1767780531048,0.12606042,91843.0,91829.0,0.00217797]
[1767780531243,0.0343107,91841.0,91829.0,0.00217797]
[1767780531442,0.12606042,91841.0,91829.0,0.00217797]
[1767780537754,0.0343107,91840.0,91829.0,0.00217797]
[1767780539259,0.0343107,91839.0,91829.0,0.00217797]
[1767780549667,0.03244052,91844.0,91829.0,0.00217797]
[1767780549865,0.03244052,91842.0,91829.0,0.00217797]
[1767780550068,0.03244052,91841.0,91829.0,0.00217797]
[1767780550266,0.12557015,91841.0,91829.0,0.00217797]
[1767780550465,0.03244052,91840.0,91829.0,0.00217797]
[1767780551968,0.12557015,91840.0,91829.0,0.00217797]
[1767780552564,0.12557015,91839.0,91829.0,0.00217797]
[1767780552770,0.12557015,91838.0,91829.0,0.00217797]
[1767780554676,0.03244052,91836.0,91824.0,0.010898]
[1767780555575,0.09312963,91837.0,91824.0,0.010898]
[1767780557380,0.03244052,91835.0,91821.0,0.010898]
[1767780557576,0.03244052,91835.0,91823.0,0.010898]
[1767780557780,0.09312963,91836.0,91823.0,0.010898]
[1767780558382,0.09312963,91836.0,91825.0,0.010898]
[1767780561474,0.010894,91862.0,91830.0,0.00210545]
[1767780561674,0.010895,91847.0,91831.0,0.09914891]
[1767780561878,0.010895,91847.0,91827.0,0.00210545]
[1767780562085,0.010895,91847.0,91826.0,0.010898]
[1767780562381,0.010895,91847.0,91825.0,0.10794146]
[1767780562885,0.010895,91850.0,91825.0,0.010898]
[1767780563078,0.010895,91850.0,91827.0,0.010898]
[1767780563478,0.09312963,91847.0,91827.0,0.010898]
[1767780563676,0.03244052,91843.0,91827.0,0.010898]
[1767780564483,0.12557015,91843.0,91827.0,0.010898]
[1767780564676,0.03244052,91842.0,91827.0,0.010898]
[1767780568291,0.03244052,91842.0,91829.0,0.010897]
[1767780568694,0.03244052,91842.0,91825.0,0.010898]
[1767780569699,0.03244052,91842.0,91824.0,0.00366035]
[1767780570699,0.03244052,91842.0,91830.0,0.010897]
[1767780571293,0.03244052,91846.0,91831.0,0.010897]